fUST/lending_fUST_20240616
["ID","MTS","AMOUNT","RATE_DAILY","PERIOD"]
[329590862,1718471444476,-1000.0,0.00016438,2]
[329590863,1718471444489,-1000.0,0.00016438,2]
[329590864,1718471444550,-500.0,0.00016438,2]
[329590865,1718471444566,-1000.0,0.00016438,2]
[329590866,1718471444581,-1000.0,0.00016438,2]
[329590867,1718471444593,-1000.0,0.00016438,2]
[329590868,1718471444604,-1000.0,0.00016438,2]
[329590869,1718471444629,-1000.0,0.00016438,2]
[329590870,1718471444653,-500.0,0.00016438,2]
[329590871,1718471444676,-1000.0,0.00016438,2]
[329590872,1718471444688,-500.0,0.00016438,2]
[329590873,1718471444701,-1000.0,0.00016438,2]
[329590874,1718471444713,-1000.0,0.00016438,2]
[329590875,1718471444727,-1000.0,0.00016438,2]
[329590876,1718471444754,-1000.0,0.00016438,2]
[329590877,1718471444770,-1000.0,0.00016438,2]
[329590878,1718471444797,-1000.0,0.00016438,2]
[329590879,1718471444812,-500.0,0.00016438,2]
[329590880,1718471444844,-1000.0,0.00016438,2]
[329590881,1718471444858,-1000.0,0.00016438,2]
[329590882,1718471444871,-1000.0,0.00016438,2]
[329590883,1718471444891,-1000.0,0.00016438,2]
[329590884,1718471444903,-1000.0,0.00016438,2]
[329590885,1718471444917,-1000.0,0.00016438,2]
[329590886,1718471444961,-1000.0,0.00016438,2]
[329590887,1718471444973,-1000.0,0.00016438,2]
[329590888,1718471444995,-1000.0,0.00016438,2]
[329590889,1718471445006,-1000.0,0.00016438,2]
[329590890,1718471445018,-1000.0,0.00016438,2]
[329590891,1718471445040,-1000.0,0.00016438,2]
[329590892,1718471445054,-1000.0,0.00016438,2]
[329590893,1718471445066,-1000.0,0.00016438,2]
[329590894,1718471445078,-1000.0,0.00016438,2]
[329590895,1718471445096,-1000.0,0.00016438,2]
[329590896,1718471445109,-500.0,0.00016438,2]
[329590897,1718471445142,-1000.0,0.00016438,2]
[329590898,1718471445157,-1000.0,0.00016438,2]
[329590900,1718471445184,-1000.0,0.00016438,2]
[329590901,1718471445197,-1000.0,0.00016438,2]
[329590902,1718471445211,-1000.0,0.00016438,2]
[329590903,1718471445231,-1000.0,0.00016438,2]
[329590904,1718471445264,-1000.0,0.00016438,2]
[329590905,1718471445276,-1000.0,0.00016438,2]
[329590906,1718471445288,-1000.0,0.00016438,2]
[329590907,1718471445298,-1000.0,0.00016438,2]
[329590908,1718471445320,-1000.0,0.00016438,2]
[329590909,1718471445335,-1000.0,0.00016438,2]
[329590910,1718471445356,-1000.0,0.00016438,2]
[329590911,1718471445376,-1000.0,0.00016438,2]
[329590912,1718471445392,-1000.0,0.00016438,2]
[329590913,1718471445406,-1000.0,0.00016438,2]
[329590914,1718471445417,-1000.0,0.00016438,2]
[329590915,1718471445434,-1000.0,0.00016438,2]
[329590916,1718471445447,-953.235215,0.00016438,2]
[329590917,1718471445459,-500.0,0.00016438,2]
[329590918,1718471445469,-199.55156558,0.00016438,2]
[329590919,1718471445480,-500.0,0.00016438,2]
[329590920,1718471445496,-500.0,0.00016438,2]
[329590921,1718471445508,-500.0,0.00016438,2]
[329590922,1718471445520,-500.0,0.00016438,2]
[329590923,1718471445539,-500.0,0.00016438,2]
[329590924,1718471445557,-500.0,0.00016438,2]
[329590925,1718471445568,-516.00511711,0.00016438,2]
[329590926,1718471445579,-500.0,0.00016438,2]
[329590927,1718471445591,-500.0,0.00016438,2]
[329590928,1718471445604,-646.31244502,0.00016438,2]
[329590929,1718471445619,-151.0,0.00016438,2]
[329590930,1718471445637,-500.0,0.00016438,2]
[329590931,1718471445647,-500.0,0.00016438,2]
[329590932,1718471445666,-500.0,0.00016438,2]
[329590933,1718471445687,-500.0,0.00016438,2]
[329590934,1718471445699,-500.0,0.00016438,2]
[329590935,1718471445720,-500.0,0.00016438,2]
[329590936,1718471445732,-500.0,0.00016438,2]
[329590937,1718471445743,-500.0,0.00016438,2]
[329590938,1718471445767,-500.0,0.00016438,2]
[329590939,1718471445797,-500.0,0.00016438,2]
[329590940,1718471445808,-500.0,0.00016438,2]
[329590941,1718471445819,-4299.72,0.00016438,2]
[329590942,1718471445840,-500.0,0.00016438,2]
[329590943,1718471445866,-500.0,0.00016438,2]
[329590944,1718471445898,-500.0,0.00016438,2]
[329590945,1718471445911,-500.0,0.00016438,2]
[329590946,1718471445953,-500.0,0.00016438,2]
[329590947,1718471445980,-151.0,0.00016438,2]
[329590948,1718471446039,-500.0,0.00016438,2]
[329590949,1718471446062,-500.0,0.00016438,2]
[329590950,1718471446073,-500.0,0.00016438,2]
[329590951,1718471446087,-500.0,0.00016438,2]
[329590952,1718471446098,-500.0,0.00016438,2]
[329590953,1718471446109,-294.41889044,0.00016438,2]
[329590954,1718471446121,-600.07,0.00016438,2]
[329590955,1718471446132,-500.0,0.00016438,2]
[329590956,1718471446184,-500.0,0.00016438,2]
[329590957,1718471446196,-500.0,0.00016438,2]
[329590958,1718471446216,-500.0,0.00016438,2]
[329590959,1718471446260,-500.0,0.00016438,2]
[329590960,1718471446308,-500.0,0.00016438,2]
[329590961,1718471446339,-500.0,0.00016438,2]
[329590962,1718471446365,-151.0,0.00016438,2]
[329590963,1718471446380,-500.0,0.00016438,2]
[329590964,1718471446409,-737.93,0.00016438,2]
[329590965,1718471446423,-737.93,0.00016438,2]
[329590966,1718471446449,-737.93,0.00016438,2]
[329590968,1718471446461,-500.0,0.00016438,2]
[329590970,1718471446473,-737.93,0.00016438,2]
[329590972,1718471446500,-737.93,0.00016438,2]
[329590973,1718471446512,-737.93,0.00016438,2]
[329590974,1718471446533,-500.0,0.00016438,2]
[329590975,1718471446546,-737.93,0.00016438,2]
[329590976,1718471446563,-254.337219,0.00016438,2]
[329590977,1718471446575,-500.0,0.00016438,2]
[329590978,1718471446588,-500.0,0.00016438,2]
[329590979,1718471446603,-151.0,0.00016438,2]
[329590980,1718471446615,-254.337219,0.00016438,2]
[329590981,1718471446634,-1080.95,0.00016438,2]
[329590982,1718471446647,-500.0,0.00016438,2]
[329590983,1718471446669,-500.0,0.00016438,2]
[329590984,1718471446681,-151.0,0.00016438,2]
[329590985,1718471446695,-500.0,0.00016438,2]
[329590986,1718471446713,-502.47547324,0.00016438,2]
[329590987,1718471446724,-500.0,0.00016438,2]
[329590988,1718471446754,-500.0,0.00016438,2]
[329590989,1718471446765,-500.0,0.00016438,2]
[329590990,1718471446776,-500.0,0.00016438,2]
[329590991,1718471446787,-500.0,0.00016438,2]
[329590992,1718471446804,-500.0,0.00016438,2]
[329590993,1718471446815,-500.0,0.00016438,2]
[329590994,1718471446833,-500.0,0.00016438,2]
[329590995,1718471446843,-207.39890968,0.00016438,2]
[329590996,1718471446865,-151.0,0.00016438,2]
[329590998,1718471446879,-500.0,0.00016438,2]
[329590999,1718471446895,-500.0,0.00016438,2]
[329591000,1718471446905,-490.14753303,0.00016438,2]
[329591001,1718471446925,-500.0,0.00016438,2]
[329591003,1718471446951,-500.0,0.00016438,2]
[329591004,1718471446967,-1250.38,0.00016438,2]
[329591005,1718471446984,-500.0,0.00016438,2]
[329591006,1718471447005,-500.0,0.00016438,2]
[329591007,1718471447020,-500.0,0.00016438,2]
[329591008,1718471447046,-500.0,0.00016438,2]
[329591009,1718471447064,-500.0,0.00016438,2]
[329591010,1718471447093,-892.45,0.00016438,2]
[329591011,1718471447128,-500.0,0.00016438,2]
[329591012,1718471447140,-505.45041171,0.00016438,2]
[329591013,1718471447151,-500.0,0.00016438,2]
[329591014,1718471447173,-151.0,0.00016438,2]
[329591015,1718471447183,-151.0,0.00016438,2]
[329591016,1718471447208,-500.0,0.00016438,2]
[329591017,1718471447224,-632.0856688,0.00016438,2]
[329591018,1718471447246,-500.0,0.00016438,2]
[329591019,1718471447273,-500.0,0.00016438,2]
[329591020,1718471447286,-500.0,0.00016438,2]
[329591021,1718471447297,-500.0,0.00016438,2]
[329591022,1718471447310,-952.75,0.00016438,2]
[329591023,1718471447322,-500.0,0.00016438,2]
[329591024,1718471447341,-1698.13,0.00016438,2]
[329591025,1718471447361,-500.0,0.00016438,2]
[329591026,1718471447375,-151.0,0.00016438,2]
[329591027,1718471447394,-500.0,0.00016438,2]
[329591028,1718471447414,-2501.33,0.00016438,2]
[329591029,1718471447430,-500.0,0.00016438,2]
[329591030,1718471447456,-500.0,0.00016438,2]
[329591031,1718471447500,-2597.4,0.00016438,2]
[329591032,1718471447543,-500.0,0.00016438,2]
[329591034,1718471447575,-500.0,0.00016438,2]
[329591035,1718471447602,-1578.11,0.00016438,2]
[329591036,1718471447622,-500.0,0.00016438,2]
[329591037,1718471447642,-2875.82,0.00016438,2]
[329591038,1718471447670,-500.0,0.00016438,2]
[329591039,1718471447701,-979.7,0.00016438,2]
[329591040,1718471447742,-500.0,0.00016438,2]
[329591041,1718471447764,-500.0,0.00016438,2]
[329591042,1718471447779,-500.0,0.00016438,2]
[329591043,1718471447818,-500.0,0.00016438,2]
[329591044,1718471447838,-196.9,0.00016438,2]
[329591045,1718471447866,-500.0,0.00016438,2]
[329591046,1718471447897,-1330.66,0.00016438,2]
[329591047,1718471447909,-500.0,0.00016438,2]
[329591048,1718471447923,-500.0,0.00016438,2]
[329591049,1718471447939,-151.0,0.00016438,2]
[329591050,1718471447951,-500.0,0.00016438,2]
[329591051,1718471447962,-500.0,0.00016438,2]
[329591052,1718471447975,-151.0,0.00016438,2]
[329591054,1718471447997,-500.0,0.00016438,2]
[329591056,1718471448009,-500.0,0.00016438,2]
[329591058,1718471448021,-500.0,0.00016438,2]
[329591059,1718471448034,-500.0,0.00016438,2]
[329591061,1718471448048,-500.0,0.00016438,2]
[329591064,1718471448069,-500.0,0.00016438,2]
[329591065,1718471448081,-151.0,0.00016438,2]
[329591067,1718471448093,-285.246841,0.0001658,2]
[329591069,1718471448118,-220.48607,0.0001658,2]
[329591071,1718471448141,-220.48607,0.0001658,2]
[329591073,1718471448158,-196.9,0.0001658,2]
[329591075,1718471448198,-151.0,0.00016612,2]
[329591077,1718471448213,-151.0,0.00016612,2]
[329591078,1718471448248,-481.92207686,0.00016709,2]
[329591080,1718471448270,-458.57201811,0.0001671,2]
[329591082,1718471448304,-151.0,0.00016711,2]
[329591084,1718471448317,-737.93,0.00016711,2]
[329591086,1718471448335,-737.93,0.00016711,2]
[329591088,1718471448348,-737.93,0.00016711,2]
[329591089,1718471448375,-737.93,0.00016711,2]
[329591091,1718471448413,-500.0,0.00016712,2]
[329591092,1718471448450,-500.0,0.00016712,2]
[329591094,1718471448481,-500.0,0.00016712,2]
[329591097,1718471448506,-500.0,0.00016712,2]
[329591098,1718471448533,-503.67087897,0.00016712,2]
[329591099,1718471448545,-151.0,0.00016712,2]
[329591100,1718471448558,-500.0,0.00016712,2]
[329591101,1718471448574,-500.0,0.00016712,2]
[329591102,1718471448587,-500.0,0.00016712,2]
[329591103,1718471448601,-500.0,0.00016712,2]
[329591104,1718471448621,-500.0,0.00016712,2]
[329591105,1718471448654,-500.0,0.00016712,2]
[329591107,1718471448674,-151.22627,0.00016712,2]
[329591109,1718471448692,-500.0,0.00016712,2]
[329591111,1718471448711,-500.0,0.00016712,2]
[329591112,1718471448760,-500.0,0.00016712,2]
[329591114,1718471448782,-500.0,0.00016712,2]
[329591117,1718471448813,-500.0,0.00016712,2]
[329591119,1718471448826,-500.0,0.00016712,2]
[329591120,1718471448842,-500.0,0.00016712,2]
[329591122,1718471448863,-500.0,0.00016712,2]
[329591125,1718471448886,-500.0,0.00016712,2]
[329591126,1718471448899,-500.0,0.00016712,2]
[329591128,1718471448928,-500.0,0.00016712,2]
[329591130,1718471448946,-500.0,0.00016712,2]
[329591131,1718471448970,-362.47265357,0.00016712,2]
[329591133,1718471448982,-1360.37,0.00016712,2]
[329591134,1718471448994,-500.0,0.00016712,2]
[329591136,1718471449027,-151.0,0.00016712,2]
[329591138,1718471449041,-151.0,0.00016712,2]
[329591140,1718471449056,-500.0,0.00016712,2]
[329591142,1718471449080,-500.0,0.00016712,2]
[329591144,1718471449095,-500.0,0.00016712,2]
[329591146,1718471449121,-500.0,0.00016712,2]
[329591150,1718471449159,-500.0,0.00016712,2]
[329591152,1718471449210,-500.0,0.00016712,2]
[329591153,1718471449228,-500.0,0.00016712,2]
[329591156,1718471449389,-500.0,0.00016712,2]
[329591157,1718471449419,-500.0,0.00016712,2]
[329591158,1718471449449,-500.0,0.00016712,2]
[329591159,1718471449466,-500.0,0.00016712,2]
[329591160,1718471449481,-500.0,0.00016712,2]
[329591161,1718471449495,-500.0,0.00016712,2]
[329591162,1718471449511,-500.0,0.00016712,2]
[329591163,1718471449526,-500.0,0.00016712,2]
[329591164,1718471449547,-500.0,0.00016712,2]
[329591165,1718471449560,-151.0,0.00016712,2]
[329591166,1718471449589,-298.0,0.00016712,2]
[329591167,1718471449604,-500.0,0.00016712,2]
[329591168,1718471449617,-500.0,0.00016712,2]
[329591169,1718471449648,-500.0,0.00016712,2]
[329591170,1718471449673,-500.0,0.00016712,2]
[329591171,1718471449685,-500.0,0.00016712,2]
[329591172,1718471449728,-500.0,0.00016712,2]
[329591173,1718471449753,-500.0,0.00016712,2]
[329591174,1718471449766,-500.0,0.00016712,2]
[329591175,1718471449795,-293.66383838,0.00016712,2]
[329591176,1718471449807,-500.0,0.00016712,2]
[329591177,1718471449820,-500.0,0.00016712,2]
[329591178,1718471449837,-500.0,0.00016712,2]
[329591179,1718471449854,-500.0,0.00016712,2]
[329591180,1718471449919,-399.11417257,0.00016712,2]
[329591181,1718471449940,-500.0,0.00016712,2]
[329591182,1718471449971,-500.0,0.00016712,2]
[329591183,1718471450011,-500.0,0.00016712,2]
[329591184,1718471450031,-500.0,0.00016712,2]
[329591185,1718471450053,-500.0,0.00016712,2]
[329591186,1718471450076,-500.0,0.00016712,2]
[329591187,1718471450093,-500.0,0.00016712,2]
[329591188,1718471450108,-500.0,0.00016712,2]
[329591189,1718471450128,-255.739709,0.00016712,2]
[329591190,1718471450141,-255.739709,0.00016712,2]
[329591191,1718471450176,-255.739709,0.00016712,2]
[329591192,1718471450196,-500.0,0.00016712,2]
[329591193,1718471450211,-500.0,0.00016712,2]
[329591194,1718471450232,-255.739709,0.00016712,2]
[329591195,1718471450254,-255.739709,0.00016712,2]
[329591196,1718471450272,-255.739709,0.00016712,2]
[329591197,1718471450300,-220.55864533,0.00016712,2]
[329591199,1718471450449,-279.44135467,0.00016712,2]
[329591200,1718471450471,-500.0,0.00016712,2]
[329591202,1718471450498,-227.09106568,0.00016712,2]
[329591205,1718471450545,-272.90893432,0.00016712,2]
[329591206,1718471450560,-500.0,0.00016712,2]
[329591207,1718471450572,-500.0,0.00016712,2]
[329591208,1718471450584,-500.0,0.00016712,2]
[329591209,1718471450598,-500.0,0.00016712,2]
[329591210,1718471450620,-500.0,0.00016712,2]
[329591211,1718471450636,-500.0,0.00016712,2]
[329591212,1718471450700,-500.0,0.00016712,2]
[329591213,1718471450726,-500.0,0.00016712,2]
[329591214,1718471450745,-500.0,0.00016712,2]
[329591215,1718471450766,-500.0,0.00016712,2]
[329591216,1718471450786,-220.48607,0.00016712,2]
[329591217,1718471450799,-220.48607,0.00016712,2]
[329591218,1718471450844,-220.48607,0.00016712,2]
[329591220,1718471450868,-500.0,0.00016712,2]
[329591221,1718471450883,-220.48607,0.00016712,2]
[329591222,1718471450894,-220.48607,0.00016712,2]
[329591223,1718471450906,-220.48607,0.00016712,2]
[329591224,1718471450917,-500.0,0.00016712,2]
[329591226,1718471450946,-500.0,0.00016712,2]
[329591227,1718471450959,-500.0,0.00016712,2]
[329591229,1718471450984,-151.0,0.00016712,2]
[329591230,1718471451004,-500.0,0.00016712,2]
[329591232,1718471451037,-500.0,0.00016712,2]
[329591233,1718471451051,-500.0,0.00016712,2]
[329591234,1718471451064,-500.0,0.00016712,2]
[329591235,1718471451096,-500.0,0.00016712,2]
[329591236,1718471451108,-500.0,0.00016712,2]
[329591237,1718471451123,-500.0,0.00016712,2]
[329591238,1718471451155,-80.77931201,0.00016712,2]
[329591242,1718471452653,-420.03157303,9.483e-05,2]
[329591243,1718471452692,-337.03497768,0.00016712,2]
[329591244,1718471452711,-82.18571031,0.00016712,2]
[329591245,1718471452722,-500.0,0.00016712,2]
[329591246,1718471452738,-500.0,0.00016712,2]
[329591247,1718471452757,-500.0,0.00016712,2]
[329591248,1718471452769,-500.0,0.00016712,2]
[329591249,1718471452781,-500.0,0.00016712,2]
[329591250,1718471452793,-500.0,0.00016712,2]
[329591251,1718471452820,-500.0,0.00016712,2]
[329591252,1718471452832,-500.0,0.00016712,2]
[329591253,1718471452869,-500.0,0.00016712,2]
[329591254,1718471452885,-500.0,0.00016712,2]
[329591255,1718471452910,-500.0,0.00016712,2]
[329591256,1718471452933,-500.0,0.00016712,2]
[329591257,1718471452977,-500.0,0.00016712,2]
[329591258,1718471452998,-500.0,0.00016712,2]
[329591259,1718471453017,-500.0,0.00016712,2]
[329591260,1718471453031,-151.0,0.00016712,2]
[329591261,1718471453045,-228.863115,0.00016712,2]
[329591262,1718471453056,-151.0,0.00016712,2]
[329591263,1718471453070,-151.0,0.00016712,2]
[329591264,1718471453084,-151.0,0.00016712,2]
[329591265,1718471453097,-500.0,0.00016712,2]
[329591266,1718471453118,-500.0,0.00016712,2]
[329591267,1718471453138,-500.0,0.00016712,2]
[329591268,1718471453154,-500.0,0.00016712,2]
[329591269,1718471453175,-500.0,0.00016712,2]
[329591270,1718471453192,-500.0,0.00016712,2]
[329591271,1718471453204,-500.0,0.00016712,2]
[329591272,1718471453221,-500.0,0.00016712,2]
[329591273,1718471453239,-500.0,0.00016712,2]
[329591274,1718471453253,-500.0,0.00016712,2]
[329591275,1718471453265,-500.0,0.00016712,2]
[329591276,1718471453283,-4299.72,0.00016712,2]
[329591277,1718471453310,-500.0,0.00016712,2]
[329591278,1718471453325,-500.0,0.00016712,2]
[329591279,1718471453342,-500.0,0.00016712,2]
[329591280,1718471453373,-500.0,0.00016712,2]
[329591281,1718471453405,-151.0,0.00016712,2]
[329591282,1718471453429,-151.0,0.00016712,2]
[329591283,1718471453444,-151.0,0.00016712,2]
[329591284,1718471453456,-500.0,0.00016712,2]
[329591285,1718471453467,-500.0,0.00016712,2]
[329591286,1718471453482,-500.0,0.00016712,2]
[329591287,1718471453495,-500.0,0.00016712,2]
[329591288,1718471453510,-435.54979291,0.00016712,2]
[329591289,1718471453530,-500.0,0.00016712,2]
[329591290,1718471453543,-500.0,0.00016712,2]
[329591291,1718471453554,-500.0,0.00016712,2]
[329591292,1718471453573,-500.0,0.00016712,2]
[329591293,1718471453591,-500.0,0.00016712,2]
[329591294,1718471453606,-500.0,0.00016712,2]
[329591295,1718471453620,-233.372609,0.00016712,2]
[329591296,1718471453645,-500.0,0.00016712,2]
[329591297,1718471453670,-500.0,0.00016712,2]
[329591298,1718471453711,-500.0,0.00016712,2]
[329591299,1718471453726,-254.337219,0.00016712,2]
[329591300,1718471453757,-500.0,0.00016712,2]
[329591301,1718471453768,-500.0,0.00016712,2]
[329591302,1718471453784,-254.337219,0.00016712,2]
[329591303,1718471453796,-254.337219,0.00016712,2]
[329591304,1718471453810,-254.337219,0.00016712,2]
[329591305,1718471453822,-254.337219,0.00016712,2]
[329591306,1718471453839,-1080.95,0.00016712,2]
[329591307,1718471453984,-254.337219,0.00016712,2]
[329591308,1718471453995,-500.0,0.00016712,2]
[329591309,1718471454011,-500.0,0.00016712,2]
[329591310,1718471454076,-500.0,0.00016712,2]
[329591311,1718471454104,-151.0,0.00016712,2]
[329591312,1718471454124,-151.0,0.00016712,2]
[329591313,1718471454143,-151.0,0.00016712,2]
[329591314,1718471454163,-500.0,0.00016712,2]
[329591315,1718471454201,-500.0,0.00016712,2]
[329591316,1718471454213,-500.0,0.00016712,2]
[329591317,1718471454228,-553.70013284,0.00016712,2]
[329591318,1718471454256,-500.0,0.00016712,2]
[329591319,1718471454272,-500.0,0.00016712,2]
[329591320,1718471454290,-500.0,0.00016712,2]
[329591321,1718471454301,-500.0,0.00016712,2]
[329591322,1718471454315,-500.0,0.00016712,2]
[329591323,1718471454327,-500.0,0.00016712,2]
[329591324,1718471454347,-1250.38,0.00016712,2]
[329591325,1718471454360,-500.0,0.00016712,2]
[329591326,1718471454381,-500.0,0.00016712,2]
[329591327,1718471454392,-500.0,0.00016712,2]
[329591328,1718471454405,-500.0,0.00016712,2]
[329591329,1718471454418,-892.45,0.00016712,2]
[329591330,1718471454436,-500.0,0.00016712,2]
[329591331,1718471454447,-151.0,0.00016712,2]
[329591332,1718471454457,-151.0,0.00016712,2]
[329591333,1718471454468,-151.0,0.00016712,2]
[329591334,1718471454480,-151.0,0.00016712,2]
[329591335,1718471454499,-500.0,0.00016712,2]
[329591336,1718471454525,-423.15023596,0.00016712,2]
[329591374,1718472634816,-155.01550155,9.308e-05,2]
[329591375,1718472634829,-155.01550155,9.309e-05,2]
[329591376,1718472634855,-276.20640687,9.402e-05,2]
[329591377,1718472635015,-247.52399479,9.402e-05,2]
[329591379,1718472635044,-107.75753368,0.00014464,2]
[329591412,1718472646618,-155.01550155,9.215e-05,2]
[329591414,1718472646633,-3826.36483335,0.00014464,2]
[329591422,1718472647158,-1725.07315766,0.00014464,2]
[329591424,1718472647174,-8239.12660524,0.00014464,2]
[329591425,1718472647274,-520.28485859,0.00014464,2]
[329591426,1718472647454,-10251.89679314,0.00014464,2]
[329591427,1718472647475,-229.49621834,0.00014464,2]
[329591428,1718472647489,-345.77751491,0.000149,2]
[329591429,1718472647519,-2817.45641186,0.000149,2]
[329591430,1718472647571,-12873.56227363,0.00015,2]
[329591440,1718472650039,-2106.65424492,0.00014193,2]
[329591441,1718472650257,-7851.43592782,0.00014193,2]
[329591446,1718472895599,300.0,0.00022,120]
[329591451,1718473025508,299.72268482,0.00025,60]
[329591503,1718473599898,168.621322,0.00023562,72]
[329591504,1718473600125,168.621322,0.00023562,96]
[329591505,1718473600384,168.621322,0.00023562,120]
[329591552,1718473835206,-155.01550155,9.999e-05,2]
[329591553,1718473835219,-267.09620262,0.00013602,2]
[329591689,1718473841572,-32.90379738,0.00013602,2]
[329591690,1718473841586,-2399.13419799,0.00013603,2]
[329591691,1718473841678,-854.82045815,0.00013603,2]
[329591692,1718473841749,-21646.04534386,0.00013603,2]
[329591693,1718473841764,-411.86685665,0.00014462,2]
[329591694,1718473841780,-310.01395126,0.00014462,2]
[329591695,1718473841792,-310.00155002,0.00014463,2]
[329591696,1718473841804,-308.00319694,0.00014463,2]
[329591697,1718473841821,-20537.38721504,0.00015,2]
[329591781,1718473846085,-1025.8805,0.00015,2]
[329591785,1718473846460,-293.17237095,0.00015,2]
[329591786,1718473846477,-1101.53149693,0.00015,2]
[329591787,1718473846491,-4202.86660281,0.00015,2]
[329591788,1718473846506,-319.91534022,0.00015,2]
[329591798,1718473847855,-17002.82802287,0.00015,2]
[329591799,1718473847944,-3131.03196006,0.00015,2]
[329591803,1718474033957,10000.0,0.00023,30]
[329591804,1718474062788,10000.0,0.00023,30]
[329591805,1718474108618,9467.71,0.00023,30]
[329591806,1718474306435,168.621322,0.00023562,61]
[329591807,1718474306696,168.621322,0.00023562,120]
[329591858,1718475033413,-402.212,9.989e-05,2]
[329591860,1718475033426,-155.01550155,9.99e-05,2]
[329591862,1718475033440,-474.65667601,0.00012752,2]
[329591870,1718475033542,-1153.47470639,0.00012752,2]
[329591872,1718475033553,-521.5832114,0.00013173,2]
[329591875,1718475033570,-250.0,0.00013677,2]
[329591877,1718475033580,-753.263302,0.00013699,2]
[329591879,1718475033608,-658.73699439,0.0001392,2]
[329591881,1718475033622,-441.04596982,0.0001392,2]
[329591883,1718475033640,-1004.69502349,0.0001392,2]
[329591885,1718475033652,-1632.55541865,0.0001392,2]
[329591887,1718475033685,-1670.99319192,0.0001392,2]
[329591888,1718475033719,-1284.5294023,0.0001392,2]
[329591897,1718475033876,-975.75,0.0001392,2]
[329592038,1718475040231,-4628.79118828,0.0001392,2]
[329592074,1718475047227,-402.212,0.00013919,2]
[329592075,1718475047241,-14707.38079885,0.0001392,2]
[329592076,1718475047259,-2581.25567308,0.00014789,2]
[329592077,1718475047279,-1245.04379994,0.00014889,2]
[329592078,1718475047325,-276.62201192,0.000149,2]
[329592079,1718475047353,-34730.00235962,0.00015,2]
[329592080,1718475047407,-2571.17216126,0.00015,2]
[329592217,1718476234802,-456.91543891,9.999e-05,2]
[329592219,1718476234813,-474.02589435,0.00013188,2]
[329592284,1718476241072,-2096.04884423,0.00013187,2]
[329592285,1718476241095,-1000.43179995,0.00013187,2]
[329592286,1718476241115,-7453.65094269,0.00013187,2]
[329592287,1718476241135,-1784.57281956,0.00013188,2]
[329592288,1718476241162,-3465.95231139,0.00013264,2]
[329592289,1718476241201,-13005.56384986,0.00013264,2]
[329592303,1718476249300,-456.72584541,0.00013263,2]
[329592304,1718476249317,-4690.03139669,0.00013264,2]
[329592305,1718476249332,-3738.45244206,0.00013264,2]
[329592306,1718476249345,-701.2837482,0.00013288,2]
[329592307,1718476249363,-2263.324505,0.00013699,2]
[329592308,1718476249384,-908.757849,0.00013699,2]
[329592309,1718476249529,-313.56105252,0.00013699,2]
[329592317,1718476253156,-972.49400986,0.00013699,2]
[329592318,1718476253215,-293.26520376,0.00013699,2]
[329592319,1718476253231,-2055.46258636,0.00013699,2]
[329592320,1718476253241,-3000.0,0.00013699,2]
[329592321,1718476253263,-462.78945,0.00013699,2]
[329592322,1718476253275,-165.60110899,0.00014312,2]
[329592323,1718476253288,-30478.87155039,0.00014314,2]